[Event "*** Biggest EVER Titled Tuesday"]
[Site "Chess.com"]
[Date "2018.04.17"]
[Round "3"]
[White "DrRiebert"]
[Black "ChainsOfFantasia"]
[Result "1-0"]
[WhiteElo "2619"]
[BlackElo "2407"]
[TimeControl "180+2"]
[EndTime "13:32:51 PDT"]
[Termination "DrRiebert won by resignation"]

1. e4 {[%clk 0:02:53.5]} 1... c6 {[%clk 0:03:00.7]} 2. d4 {[%clk 0:02:54.4]}
2... d5 {[%clk 0:03:02.6]} 3. f3 {[%clk 0:02:56.3]} 3... e6 {[%clk 0:03:02.7]}
4. Nc3 {[%clk 0:02:57.3]} 4... Bb4 {[%clk 0:03:03.7]} 5. Ne2 {[%clk 0:02:58.5]}
5... Ne7 {[%clk 0:03:04.1]} 6. Qd3 {[%clk 0:02:58.3]} 6... O-O {[%clk
0:02:42.2]} 7. a3 {[%clk 0:02:59.1]} 7... Ba5 {[%clk 0:02:42.7]} 8. g4 {[%clk
0:02:53.4]} 8... b5 {[%clk 0:02:38.4]} 9. Bd2 {[%clk 0:02:50]} 9... Ba6 {[%clk
0:02:37.7]} 10. b4 {[%clk 0:02:47.3]} 10... Bc7 {[%clk 0:02:37]} 11. e5 {[%clk
0:02:30.9]} 11... Nd7 {[%clk 0:02:36]} 12. a4 {[%clk 0:02:31.9]} 12... Nb6
{[%clk 0:02:30.7]} 13. axb5 {[%clk 0:02:31.2]} 13... Bxb5 {[%clk 0:02:29.2]} 14.
Nxb5 {[%clk 0:02:32.5]} 14... cxb5 {[%clk 0:02:30.1]} 15. Qxb5 {[%clk
0:02:33.3]} 15... Nc4 {[%clk 0:02:31.2]} 16. c3 {[%clk 0:02:14.9]} 16... f6
{[%clk 0:02:28.1]} 17. Nf4 {[%clk 0:01:58.5]} 17... fxe5 {[%clk 0:02:15.1]} 18.
Nxe6 {[%clk 0:01:57.9]} 18... Qc8 {[%clk 0:02:16.4]} 19. Nxf8 {[%clk 0:01:36.5]}
19... Qxf8 {[%clk 0:02:18.3]} 20. Bxc4 {[%clk 0:01:36.6]} 20... Qxf3 {[%clk
0:02:18.3]} 21. Rf1 {[%clk 0:01:37.3]} 21... Qe4+ {[%clk 0:02:16.4]} 22. Be2
{[%clk 0:01:37.9]} 22... exd4 {[%clk 0:02:11.7]} 23. Qd3 {[%clk 0:01:35.2]}
23... Qe6 {[%clk 0:02:05.4]} 24. cxd4 {[%clk 0:01:11.6]} 24... Nc6 {[%clk
0:02:00.7]} 25. b5 {[%clk 0:01:12.7]} 25... Ne7 {[%clk 0:01:43.1]} 26. Bb4
{[%clk 0:01:03.2]} 26... Ng6 {[%clk 0:01:43.5]} 27. Qf5 {[%clk 0:01:03.1]} 27...
Qe3 {[%clk 0:01:34.8]} 28. Qxd5+ {[%clk 0:01:03.9]} 28... Kh8 {[%clk 0:01:33.4]}
29. Qxa8+ {[%clk 0:01:04.1]} 1-0

[Event "*** Biggest EVER Titled Tuesday"]
[Site "Chess.com"]
[Date "2018.04.17"]
[Round "3"]
[White "DanielNaroditsky"]
[Black "stregachess"]
[Result "1-0"]
[WhiteElo "2827"]
[BlackElo "2078"]
[TimeControl "180+2"]
[EndTime "13:33:03 PDT"]
[Termination "DanielNaroditsky won by resignation"]

1. d4 {[%clk 0:03:01.9]} 1... Nf6 {[%clk 0:02:59.8]} 2. c4 {[%clk 0:03:01.3]}
2... e5 {[%clk 0:02:59.9]} 3. dxe5 {[%clk 0:03:00.6]} 3... Ne4 {[%clk 0:03:01]}
4. Nf3 {[%clk 0:03:00.1]} 4... Bb4+ {[%clk 0:03:01]} 5. Nbd2 {[%clk 0:03:00.7]}
5... Nc6 {[%clk 0:03:01.6]} 6. e3 {[%clk 0:02:57.6]} 6... O-O {[%clk 0:03:01.6]}
7. Bd3 {[%clk 0:02:57.4]} 7... Nxd2 {[%clk 0:03:02]} 8. Bxd2 {[%clk 0:02:59.3]}
8... Bxd2+ {[%clk 0:03:02.2]} 9. Qxd2 {[%clk 0:03:01.2]} 9... Re8 {[%clk
0:03:03]} 10. O-O-O {[%clk 0:02:43.3]} 10... Qe7 {[%clk 0:03:00.4]} 11. Nd4
{[%clk 0:02:33.3]} 11... Nxe5 {[%clk 0:02:52.4]} 12. Bc2 {[%clk 0:02:34.4]}
12... d6 {[%clk 0:02:50.7]} 13. Qc3 {[%clk 0:02:35.1]} 13... Nc6 {[%clk
0:02:46]} 14. Nf3 {[%clk 0:02:34]} 14... Bd7 {[%clk 0:02:42.7]} 15. Rd5 {[%clk
0:02:35.4]} 15... Rab8 {[%clk 0:02:30.9]} 16. Rg5 {[%clk 0:02:31.7]} 16... f6
{[%clk 0:02:23]} 17. Rh5 {[%clk 0:02:25.6]} 17... g6 {[%clk 0:02:17.3]} 18. Rh4
{[%clk 0:02:11.6]} 18... b5 {[%clk 0:02:18.1]} 19. cxb5 {[%clk 0:02:12.2]} 19...
Rxb5 {[%clk 0:02:18.1]} 20. Qc4+ {[%clk 0:02:13.6]} 20... Kg7 {[%clk 0:01:12.5]}
21. Qxb5 {[%clk 0:02:13.3]} 21... Ne5 {[%clk 0:01:04.3]} 22. Qe2 {[%clk
0:02:08]} 22... Rb8 {[%clk 0:01:00]} 23. Nd4 {[%clk 0:02:07.8]} 23... c5 {[%clk
0:00:50.2]} 24. f4 {[%clk 0:02:09]} 24... cxd4 {[%clk 0:00:41.8]} 25. fxe5
{[%clk 0:02:10.2]} 25... Qxe5 {[%clk 0:00:42.7]} 26. Rxd4 {[%clk 0:02:10.8]}
26... Be6 {[%clk 0:00:36]} 27. Qa6 {[%clk 0:02:09.5]} 27... Qxe3+ {[%clk
0:00:31]} 28. Rd2 {[%clk 0:02:10.8]} 28... Rc8 {[%clk 0:00:23.5]} 29. Qe2 {[%clk
0:02:09.6]} 1-0

[Event "*** Biggest EVER Titled Tuesday"]
[Site "Chess.com"]
[Date "2018.04.17"]
[Round "3"]
[White "shyam"]
[Black "chesssharkattack"]
[Result "1-0"]
[WhiteElo "2568"]
[BlackElo "2386"]
[TimeControl "180+2"]
[EndTime "13:33:03 PDT"]
[Termination "shyam won by resignation"]

1. e4 {[%clk 0:03:01.9]} 1... e5 {[%clk 0:03:00.6]} 2. Nf3 {[%clk 0:03:02.9]}
2... Nf6 {[%clk 0:03:02.1]} 3. Nc3 {[%clk 0:03:03.4]} 3... Nc6 {[%clk
0:03:03.5]} 4. Bb5 {[%clk 0:03:04.2]} 4... Bd6 {[%clk 0:03:03.7]} 5. d3 {[%clk
0:03:02.6]} 5... h6 {[%clk 0:03:04.2]} 6. a3 {[%clk 0:03:03.1]} 6... a6 {[%clk
0:03:04.4]} 7. Bc4 {[%clk 0:03:03.7]} 7... O-O {[%clk 0:03:05.2]} 8. g4 {[%clk
0:03:03.6]} 8... Nxg4 {[%clk 0:03:05.1]} 9. Rg1 {[%clk 0:03:04.6]} 9... Nxf2
{[%clk 0:02:46]} 10. Kxf2 {[%clk 0:03:03]} 10... Bc5+ {[%clk 0:02:46.8]} 11. Be3
{[%clk 0:02:56.3]} 11... Bxe3+ {[%clk 0:02:03.2]} 12. Kxe3 {[%clk 0:02:55.9]}
12... Kh8 {[%clk 0:02:04.7]} 13. Qe1 {[%clk 0:02:47.4]} 13... d6 {[%clk
0:01:54.4]} 14. Qg3 {[%clk 0:02:46.3]} 14... g6 {[%clk 0:01:48.4]} 15. Raf1
{[%clk 0:02:41.2]} 15... Qe7 {[%clk 0:01:36.4]} 16. Nd5 {[%clk 0:02:36.9]} 16...
Qd8 {[%clk 0:01:34.6]} 17. Nh4 {[%clk 0:02:32.2]} 17... g5 {[%clk 0:01:26.7]}
18. Rf6 {[%clk 0:02:26.8]} 18... Kg7 {[%clk 0:01:20]} 19. Nf3 {[%clk 0:02:06.2]}
19... Ne7 {[%clk 0:00:18.7]} 20. Nxg5 {[%clk 0:02:02.7]} 20... Nxd5+ {[%clk
0:00:18.2]} 21. Bxd5 {[%clk 0:01:59]} 21... Kxf6 {[%clk 0:00:11.5]} 22. Qh4
{[%clk 0:01:58.8]} 22... Ke7 {[%clk 0:00:08.2]} 23. Nxf7+ {[%clk 0:01:58.7]}
23... Kd7 {[%clk 0:00:09.5]} 24. Nxd8 {[%clk 0:01:57.8]} 24... Rxd8 {[%clk
0:00:11.4]} 1-0

[Event "*** Biggest EVER Titled Tuesday"]
[Site "Chess.com"]
[Date "2018.04.17"]
[Round "3"]
[White "Generalas"]
[Black "SilverCat1992"]
[Result "1-0"]
[WhiteElo "2154"]
[BlackElo "2067"]
[TimeControl "180+2"]
[EndTime "13:33:14 PDT"]
[Termination "Generalas won by resignation"]

1. e4 {[%clk 0:03:01.9]} 1... d5 {[%clk 0:00:32.7]} 2. exd5 {[%clk 0:03:00.9]}
2... Nf6 {[%clk 0:00:33.7]} 3. d4 {[%clk 0:02:58.3]} 3... Bg4 {[%clk 0:00:34.4]}
4. f3 {[%clk 0:02:56.4]} 4... Bf5 {[%clk 0:00:35.6]} 5. c4 {[%clk 0:02:57.1]}
5... e6 {[%clk 0:00:36.9]} 6. dxe6 {[%clk 0:02:57.3]} 6... Nc6 {[%clk
0:00:38.5]} 7. Be3 {[%clk 0:02:52.2]} 7... Bb4+ {[%clk 0:00:35.2]} 8. Kf2 {[%clk
0:02:52.5]} 8... O-O {[%clk 0:00:35.9]} 9. Nc3 {[%clk 0:02:47]} 9... Re8 {[%clk
0:00:36.1]} 10. exf7+ {[%clk 0:02:45.2]} 10... Kxf7 {[%clk 0:00:38]} 11. Nge2
{[%clk 0:02:30.6]} 11... Rxe3 {[%clk 0:00:12.2]} 12. Kxe3 {[%clk 0:02:30.5]}
12... Qe7+ {[%clk 0:00:13.2]} 13. Kf2 {[%clk 0:02:29.4]} 13... Re8 {[%clk
0:00:14.8]} 14. Qd2 {[%clk 0:02:28.4]} 14... h5 {[%clk 0:00:13]} 15. Re1 {[%clk
0:02:22.8]} 15... h4 {[%clk 0:00:13.5]} 16. a3 {[%clk 0:02:15.4]} 16... Bxc3
{[%clk 0:00:12.5]} 17. Nxc3 {[%clk 0:02:04.6]} 17... Qd7 {[%clk 0:00:08.2]} 18.
Rxe8 {[%clk 0:01:46.9]} 18... Nxe8 {[%clk 0:00:09.3]} 19. Qf4 {[%clk 0:01:41.1]}
19... Nxd4 {[%clk 0:00:09.9]} 20. Nd5 {[%clk 0:01:30]} 20... Nd6 {[%clk
0:00:08.3]} 21. Qxd4 {[%clk 0:01:29.7]} 1-0

[Event "*** Biggest EVER Titled Tuesday"]
[Site "Chess.com"]
[Date "2018.04.17"]
[Round "3"]
[White "Supernotar"]
[Black "Jospem"]
[Result "0-1"]
[WhiteElo "2450"]
[BlackElo "2690"]
[TimeControl "180+2"]
[EndTime "13:33:17 PDT"]
[Termination "Jospem won by checkmate"]

1. d4 {[%clk 0:03:01.9]} 1... Nf6 {[%clk 0:03:00.9]} 2. c4 {[%clk 0:02:55.9]}
2... e6 {[%clk 0:03:01.6]} 3. Nf3 {[%clk 0:02:56.5]} 3... c5 {[%clk 0:03:01.2]}
4. d5 {[%clk 0:02:56.8]} 4... exd5 {[%clk 0:03:03.1]} 5. cxd5 {[%clk 0:02:57.5]}
5... d6 {[%clk 0:03:05]} 6. Nc3 {[%clk 0:02:58.6]} 6... g6 {[%clk 0:03:06.5]} 7.
g3 {[%clk 0:02:59.5]} 7... Bg7 {[%clk 0:03:07.9]} 8. Nd2 {[%clk 0:03:00.5]} 8...
O-O {[%clk 0:03:09.8]} 9. Bg2 {[%clk 0:03:01.7]} 9... a6 {[%clk 0:03:11.1]} 10.
a4 {[%clk 0:03:02.8]} 10... Nbd7 {[%clk 0:03:12.3]} 11. O-O {[%clk 0:03:03.7]}
11... Re8 {[%clk 0:03:13.7]} 12. h3 {[%clk 0:03:01.5]} 12... Rb8 {[%clk
0:03:12.2]} 13. a5 {[%clk 0:03:01.9]} 13... b5 {[%clk 0:03:13.3]} 14. axb6
{[%clk 0:03:02.8]} 14... Nxb6 {[%clk 0:03:14.3]} 15. Nb3 {[%clk 0:03:04]} 15...
Nc4 {[%clk 0:02:57.5]} 16. Ra4 {[%clk 0:02:42.6]} 16... Rb4 {[%clk 0:02:57.7]}
17. Rxb4 {[%clk 0:02:33]} 17... cxb4 {[%clk 0:02:59.6]} 18. Na2 {[%clk
0:02:31.2]} 18... a5 {[%clk 0:02:53.6]} 19. Nd4 {[%clk 0:02:30.7]} 19... Qb6
{[%clk 0:02:44.7]} 20. b3 {[%clk 0:02:26]} 20... Ne5 {[%clk 0:02:44.5]} 21. Bb2
{[%clk 0:02:24.6]} 21... Bb7 {[%clk 0:02:37.2]} 22. e4 {[%clk 0:02:16.4]} 22...
Ned7 {[%clk 0:02:37.9]} 23. Nc6 {[%clk 0:02:12.1]} 23... Nc5 {[%clk 0:02:15.1]}
24. f3 {[%clk 0:01:56.7]} 24... Bxc6 {[%clk 0:02:06.3]} 25. Bxf6 {[%clk
0:01:53.7]} 25... Nxe4+ {[%clk 0:02:00.2]} 26. Kh2 {[%clk 0:01:51.6]} 26... Nxf6
{[%clk 0:02:00.7]} 27. dxc6 {[%clk 0:01:51.5]} 27... Qxc6 {[%clk 0:02:02.6]} 28.
f4 {[%clk 0:01:52.5]} 28... d5 {[%clk 0:02:03.2]} 29. Qd3 {[%clk 0:01:51]} 29...
Ne4 {[%clk 0:01:59.2]} 30. Rc1 {[%clk 0:01:50.4]} 30... Qe6 {[%clk 0:01:52.7]}
31. Rc7 {[%clk 0:01:47.8]} 31... h5 {[%clk 0:01:52.9]} 32. h4 {[%clk 0:01:45.1]}
32... Nf6 {[%clk 0:01:45.3]} 33. Nc1 {[%clk 0:01:19.2]} 33... Ng4+ {[%clk
0:01:37.8]} 34. Kg1 {[%clk 0:01:20.2]} 34... Qe1+ {[%clk 0:01:29.8]} 35. Qf1
{[%clk 0:01:20.7]} 35... Bd4+ {[%clk 0:01:26.3]} 36. Kh1 {[%clk 0:01:21.5]}
36... Qxg3 {[%clk 0:01:27.7]} 37. Bxd5 {[%clk 0:01:18.5]} 37... Qh2# {[%clk
0:01:28]} 0-1

[Event "*** Biggest EVER Titled Tuesday"]
[Site "Chess.com"]
[Date "2018.04.17"]
[Round "3"]
[White "lukas_111111"]
[Black "IMVoja"]
[Result "0-1"]
[WhiteElo "2502"]
[BlackElo "2319"]
[TimeControl "180+2"]
[EndTime "13:33:20 PDT"]
[Termination "IMVoja won by resignation"]

1. e4 {[%clk 0:03:01.9]} 1... c5 {[%clk 0:02:56.7]} 2. Nf3 {[%clk 0:03:01.8]}
2... d6 {[%clk 0:02:58.1]} 3. d4 {[%clk 0:03:02.6]} 3... cxd4 {[%clk 0:02:58.9]}
4. Nxd4 {[%clk 0:03:04.5]} 4... Nf6 {[%clk 0:03:00.4]} 5. Nc3 {[%clk 0:03:05.6]}
5... g6 {[%clk 0:03:01.9]} 6. Be3 {[%clk 0:03:05.8]} 6... Bg7 {[%clk 0:03:01.7]}
7. f3 {[%clk 0:03:07.3]} 7... a6 {[%clk 0:03:03.1]} 8. Qd2 {[%clk 0:03:01.4]}
8... h5 {[%clk 0:03:02.8]} 9. a4 {[%clk 0:02:55.8]} 9... Nc6 {[%clk 0:02:56.8]}
10. Be2 {[%clk 0:02:53.6]} 10... Bd7 {[%clk 0:02:55.1]} 11. O-O {[%clk
0:02:54.3]} 11... Nxd4 {[%clk 0:02:53.9]} 12. Bxd4 {[%clk 0:02:54.7]} 12... O-O
{[%clk 0:02:53.3]} 13. a5 {[%clk 0:02:55.3]} 13... Bc6 {[%clk 0:02:51.2]} 14.
Rfd1 {[%clk 0:02:50.1]} 14... Qc8 {[%clk 0:02:48.6]} 15. Kh1 {[%clk 0:02:41.3]}
15... Rd8 {[%clk 0:02:44.5]} 16. Bb6 {[%clk 0:02:40.7]} 16... Re8 {[%clk
0:02:43.8]} 17. Bd4 {[%clk 0:02:23.5]} 17... Nd7 {[%clk 0:02:30.1]} 18. Bxg7
{[%clk 0:02:14.5]} 18... Kxg7 {[%clk 0:02:32]} 19. f4 {[%clk 0:02:14.7]} 19...
Nf6 {[%clk 0:02:29.2]} 20. Bf3 {[%clk 0:02:14]} 20... Qe6 {[%clk 0:02:01.3]} 21.
Re1 {[%clk 0:02:14.4]} 21... Rad8 {[%clk 0:01:58.3]} 22. Qd4 {[%clk 0:02:04.8]}
22... Kh7 {[%clk 0:01:55.7]} 23. Re3 {[%clk 0:02:01.4]} 23... Ng4 {[%clk
0:01:54]} 24. Re2 {[%clk 0:01:59.4]} 24... Qf6 {[%clk 0:01:52.8]} 25. Rd1 {[%clk
0:01:48.5]} 25... Qxf4 {[%clk 0:01:47.5]} 26. Bxg4 {[%clk 0:01:42.1]} 26... Qxg4
{[%clk 0:01:45.8]} 27. Rf2 {[%clk 0:01:39.1]} 27... Kg8 {[%clk 0:01:41.9]} 28.
Rdf1 {[%clk 0:01:37.9]} 28... Rf8 {[%clk 0:01:40.8]} 29. Rf4 {[%clk 0:01:34.2]}
29... e5 {[%clk 0:01:39]} 0-1

[Event "*** Biggest EVER Titled Tuesday"]
[Site "Chess.com"]
[Date "2018.04.17"]
[Round "3"]
[White "Diwi89"]
[Black "Koksik_13"]
[Result "1-0"]
[WhiteElo "2735"]
[BlackElo "2481"]
[TimeControl "180+2"]
[EndTime "13:33:25 PDT"]
[Termination "Diwi89 won by resignation"]

1. e4 {[%clk 0:03:01.9]} 1... e6 {[%clk 0:03:00.2]} 2. d4 {[%clk 0:03:00.7]}
2... d5 {[%clk 0:03:01.5]} 3. Nc3 {[%clk 0:03:01.1]} 3... Bb4 {[%clk 0:03:02]}
4. e5 {[%clk 0:02:58.4]} 4... c5 {[%clk 0:03:02.6]} 5. Qg4 {[%clk 0:02:54.4]}
5... Ne7 {[%clk 0:03:01.6]} 6. Nf3 {[%clk 0:02:45.9]} 6... Nbc6 {[%clk
0:03:00.8]} 7. a3 {[%clk 0:02:31.3]} 7... Qa5 {[%clk 0:02:59.7]} 8. Bd2 {[%clk
0:02:29.5]} 8... h5 {[%clk 0:02:39.7]} 9. Qxg7 {[%clk 0:02:22.3]} 9... Rg8
{[%clk 0:02:40.7]} 10. Qh6 {[%clk 0:02:21.5]} 10... Nxd4 {[%clk 0:02:26.5]} 11.
Nxd4 {[%clk 0:02:21]} 11... cxd4 {[%clk 0:02:27.5]} 12. Nb5 {[%clk 0:02:22]}
12... Bxd2+ {[%clk 0:02:25.6]} 13. Qxd2 {[%clk 0:02:23.5]} 13... Qxd2+ {[%clk
0:02:20.3]} 14. Kxd2 {[%clk 0:02:25]} 14... Kd7 {[%clk 0:02:05.6]} 15. Nxd4
{[%clk 0:02:25.5]} 15... Nc6 {[%clk 0:02:06.3]} 16. Bb5 {[%clk 0:02:26.5]} 16...
Kc7 {[%clk 0:02:05.3]} 17. Bxc6 {[%clk 0:02:25.5]} 17... bxc6 {[%clk 0:02:05.6]}
18. g3 {[%clk 0:02:26.8]} 18... Rb8 {[%clk 0:02:03.1]} 19. b4 {[%clk 0:02:27.2]}
19... h4 {[%clk 0:01:59.1]} 20. Nf3 {[%clk 0:02:22.8]} 20... h3 {[%clk
0:01:53.1]} 21. Rhe1 {[%clk 0:02:19.1]} 21... c5 {[%clk 0:01:44.7]} 22. bxc5
{[%clk 0:02:19.6]} 22... Rb5 {[%clk 0:01:45.7]} 23. Nd4 {[%clk 0:02:20.2]} 23...
Rxc5 {[%clk 0:01:46.2]} 24. Rab1 {[%clk 0:02:21]} 24... Bd7 {[%clk 0:01:39.4]}
25. Rb4 {[%clk 0:02:21.8]} 25... Rc8 {[%clk 0:01:36.9]} 26. Reb1 {[%clk
0:02:21.9]} 26... Kd8 {[%clk 0:01:38]} 27. R1b2 {[%clk 0:02:14.5]} 27... a5
{[%clk 0:01:36]} 28. R4b3 {[%clk 0:02:07.9]} 28... Rc4 {[%clk 0:01:36.7]} 29.
Rd3 {[%clk 0:02:09]} 29... Ke7 {[%clk 0:01:18.2]} 30. Rb7 {[%clk 0:02:08.7]}
30... Ke8 {[%clk 0:01:07.4]} 31. g4 {[%clk 0:02:04.1]} 31... Ba4 {[%clk
0:00:46.9]} 32. c3 {[%clk 0:02:03]} 32... Bd7 {[%clk 0:00:48.1]} 33. Rxh3 {[%clk
0:02:03]} 33... Ke7 {[%clk 0:00:43.3]} 34. f4 {[%clk 0:02:02.1]} 34... Ra4
{[%clk 0:00:43]} 35. f5 {[%clk 0:02:03.2]} 35... exf5 {[%clk 0:00:42.3]} 36.
gxf5 {[%clk 0:02:03.7]} 1-0

[Event "*** Biggest EVER Titled Tuesday"]
[Site "Chess.com"]
[Date "2018.04.17"]
[Round "3"]
[White "MFBerna"]
[Black "Too_Stupid_To_Play"]
[Result "0-1"]
[WhiteElo "2337"]
[BlackElo "2231"]
[TimeControl "180+2"]
[EndTime "13:33:32 PDT"]
[Termination "Too_Stupid_To_Play won by resignation"]

1. d4 {[%clk 0:03:01.9]} 1... Nf6 {[%clk 0:03:01.2]} 2. Nf3 {[%clk 0:03:01.7]}
2... e6 {[%clk 0:03:01.8]} 3. Bf4 {[%clk 0:03:00.8]} 3... Bd6 {[%clk 0:03:00.3]}
4. Bxd6 {[%clk 0:03:00.8]} 4... cxd6 {[%clk 0:03:02.2]} 5. e3 {[%clk 0:03:01.7]}
5... O-O {[%clk 0:03:02.6]} 6. Bd3 {[%clk 0:03:01.7]} 6... d5 {[%clk 0:03:03.8]}
7. Nbd2 {[%clk 0:03:01.9]} 7... b6 {[%clk 0:03:02.3]} 8. c3 {[%clk 0:03:01.8]}
8... Ba6 {[%clk 0:03:03.5]} 9. Qe2 {[%clk 0:03:02]} 9... Bxd3 {[%clk 0:03:03.1]}
10. Qxd3 {[%clk 0:03:03.9]} 10... Nc6 {[%clk 0:03:00.5]} 11. O-O {[%clk
0:03:03.4]} 11... Rc8 {[%clk 0:02:52.7]} 12. h3 {[%clk 0:02:52.1]} 12... Qc7
{[%clk 0:02:47.8]} 13. Rfe1 {[%clk 0:02:48.6]} 13... Na5 {[%clk 0:02:42.8]} 14.
e4 {[%clk 0:02:35.4]} 14... dxe4 {[%clk 0:02:44.7]} 15. Nxe4 {[%clk 0:02:36.4]}
15... Nxe4 {[%clk 0:02:43.7]} 16. Rxe4 {[%clk 0:02:38.3]} 16... d5 {[%clk
0:02:32.8]} 17. Rh4 {[%clk 0:02:33.2]} 17... g6 {[%clk 0:02:19.6]} 18. Ng5
{[%clk 0:02:26.1]} 18... h5 {[%clk 0:02:17.1]} 19. Rxh5 {[%clk 0:02:17.6]} 19...
Qc4 {[%clk 0:01:59.8]} 20. Qg3 {[%clk 0:01:55.1]} 20... Qe2 {[%clk 0:01:58.8]}
21. Nf3 {[%clk 0:01:10]} 21... Qxb2 {[%clk 0:01:53.2]} 22. Re1 {[%clk 0:01:08]}
22... Rxc3 {[%clk 0:01:36.2]} 23. Rxe6 {[%clk 0:01:01.9]} 23... Qb1+ {[%clk
0:01:13.4]} 24. Re1 {[%clk 0:00:49.6]} 24... Qxe1+ {[%clk 0:00:55.2]} 25. Nxe1
{[%clk 0:00:47.3]} 25... Rxg3 {[%clk 0:00:57.1]} 26. fxg3 {[%clk 0:00:48.7]}
26... gxh5 {[%clk 0:00:57.9]} 0-1

[Event "*** Biggest EVER Titled Tuesday"]
[Site "Chess.com"]
[Date "2018.04.17"]
[Round "3"]
[White "Ellaijio_B"]
[Black "AlexZambrano"]
[Result "1-0"]
[WhiteElo "2552"]
[BlackElo "2374"]
[TimeControl "180+2"]
[EndTime "13:33:33 PDT"]
[Termination "Ellaijio_B won by resignation"]

1. e4 {[%clk 0:02:24.5]} 1... e6 {[%clk 0:02:59.2]} 2. Qe2 {[%clk 0:02:25]} 2...
d5 {[%clk 0:03:00.3]} 3. exd5 {[%clk 0:02:25.8]} 3... Qxd5 {[%clk 0:03:01.6]} 4.
Nc3 {[%clk 0:02:27.1]} 4... Qd8 {[%clk 0:03:03]} 5. b3 {[%clk 0:02:27.9]} 5...
Nf6 {[%clk 0:03:04.5]} 6. Bb2 {[%clk 0:02:29.1]} 6... Be7 {[%clk 0:03:06]} 7.
O-O-O {[%clk 0:02:30.3]} 7... O-O {[%clk 0:03:04.1]} 8. g4 {[%clk 0:02:31.3]}
8... b6 {[%clk 0:03:04.6]} 9. Bg2 {[%clk 0:02:31.7]} 9... c6 {[%clk 0:03:04.4]}
10. g5 {[%clk 0:02:32.1]} 10... Nd5 {[%clk 0:03:04.8]} 11. Ne4 {[%clk
0:02:28.7]} 11... Nf4 {[%clk 0:02:30.7]} 12. Qf3 {[%clk 0:02:29.5]} 12... Nxg2
{[%clk 0:02:31.1]} 13. Qxg2 {[%clk 0:02:31.4]} 13... Bb7 {[%clk 0:02:31.4]} 14.
h4 {[%clk 0:02:28.3]} 14... Nd7 {[%clk 0:02:30.1]} 15. h5 {[%clk 0:02:26.5]}
15... Nc5 {[%clk 0:02:31.2]} 16. h6 {[%clk 0:01:56.1]} 16... Nxe4 {[%clk
0:02:30.5]} 17. hxg7 {[%clk 0:01:53]} 17... Nxg5 {[%clk 0:02:04.9]} 18. gxf8=Q+
{[%clk 0:01:52.4]} 18... Kxf8 {[%clk 0:02:05.6]} 19. f4 {[%clk 0:01:49.3]} 19...
Bf6 {[%clk 0:00:45.7]} 20. fxg5 {[%clk 0:01:45.1]} 20... Bxb2+ {[%clk
0:00:46.5]} 21. Kxb2 {[%clk 0:01:46.4]} 21... Qd4+ {[%clk 0:00:47.9]} 22. c3
{[%clk 0:01:46.3]} 22... Qd6 {[%clk 0:00:46.3]} 23. Rxh7 {[%clk 0:01:44.8]}
23... a5 {[%clk 0:00:36.1]} 24. Qh2 {[%clk 0:01:36.7]} 24... Qd3 {[%clk
0:00:32.3]} 25. Rh3 {[%clk 0:01:30.5]} 25... Qd5 {[%clk 0:00:30.5]} 26. Rh8+
{[%clk 0:01:28.3]} 26... Ke7 {[%clk 0:00:31.3]} 27. Qc7+ {[%clk 0:01:28.8]}
27... Qd7 {[%clk 0:00:31.9]} 28. Qxd7+ {[%clk 0:01:30]} 28... Kxd7 {[%clk
0:00:33.1]} 29. Rxa8 {[%clk 0:01:31.5]} 29... Bxa8 {[%clk 0:00:34.3]} 30. Nf3
{[%clk 0:01:32.8]} 1-0

[Event "*** Biggest EVER Titled Tuesday"]
[Site "Chess.com"]
[Date "2018.04.17"]
[Round "3"]
[White "goldenspine"]
[Black "calemcc"]
[Result "0-1"]
[WhiteElo "2275"]
[BlackElo "2251"]
[TimeControl "180+2"]
[EndTime "13:33:43 PDT"]
[Termination "calemcc won by resignation"]

1. d4 {[%clk 0:03:01.9]} 1... d5 {[%clk 0:03:01]} 2. Nf3 {[%clk 0:03:03.2]} 2...
Bf5 {[%clk 0:03:01.5]} 3. c4 {[%clk 0:03:04.3]} 3... dxc4 {[%clk 0:03:03.4]} 4.
Nc3 {[%clk 0:03:04.9]} 4... Nf6 {[%clk 0:03:04.9]} 5. Bf4 {[%clk 0:03:02.4]}
5... c6 {[%clk 0:03:04.6]} 6. a4 {[%clk 0:03:02.2]} 6... e6 {[%clk 0:03:05.2]}
7. e3 {[%clk 0:03:03.3]} 7... Bd6 {[%clk 0:03:05.5]} 8. Bxd6 {[%clk 0:03:00.8]}
8... Qxd6 {[%clk 0:03:07.4]} 9. Bxc4 {[%clk 0:03:01.6]} 9... Nbd7 {[%clk
0:03:07.2]} 10. O-O {[%clk 0:03:00.5]} 10... O-O {[%clk 0:03:07.1]} 11. Re1
{[%clk 0:03:01.1]} 11... Ne4 {[%clk 0:03:08.1]} 12. Bd3 {[%clk 0:03:00.7]} 12...
Ndf6 {[%clk 0:03:03.5]} 13. Ne5 {[%clk 0:03:00.6]} 13... Rfd8 {[%clk 0:02:52.9]}
14. Qc2 {[%clk 0:02:44.2]} 14... Nxc3 {[%clk 0:02:50.3]} 15. Bxf5 {[%clk
0:02:30.1]} 15... Ncd5 {[%clk 0:02:45.4]} 16. Bh3 {[%clk 0:02:24.7]} 16... Rac8
{[%clk 0:02:34.6]} 17. Qc5 {[%clk 0:01:35.1]} 17... Qxc5 {[%clk 0:02:15.1]} 18.
dxc5 {[%clk 0:01:37]} 18... Nb4 {[%clk 0:02:16.2]} 19. Red1 {[%clk 0:01:28.5]}
19... Rd5 {[%clk 0:02:16.7]} 20. Rxd5 {[%clk 0:01:02.3]} 20... cxd5 {[%clk
0:02:16.5]} 21. Rc1 {[%clk 0:00:59]} 21... Ne4 {[%clk 0:02:15.1]} 22. c6 {[%clk
0:00:17.1]} 22... Nxc6 {[%clk 0:02:06.2]} 23. f3 {[%clk 0:00:16.4]} 23... Nd6
{[%clk 0:02:03.9]} 24. Nd3 {[%clk 0:00:17.1]} 24... Nc4 {[%clk 0:02:01.4]} 25.
Kf2 {[%clk 0:00:14.1]} 25... Ne7 {[%clk 0:01:51.5]} 26. Nf4 {[%clk 0:00:14.5]}
26... Rc6 {[%clk 0:01:46.5]} 27. b3 {[%clk 0:00:14.3]} 27... Na5 {[%clk
0:01:43.3]} 28. Rb1 {[%clk 0:00:09.1]} 28... Rc2+ {[%clk 0:01:43.2]} 29. Kg3
{[%clk 0:00:08.7]} 29... Rc3 {[%clk 0:01:43]} 30. Ne2 {[%clk 0:00:07.1]} 30...
Rxe3 {[%clk 0:01:43.2]} 31. Rc1 {[%clk 0:00:09]} 31... Rxe2 {[%clk 0:01:41.2]}
0-1